[Event "Titled Tuesday Blitz July 11 Early 2023"]
[White "Goldin, Roman"]
[Black "Michalczak, Thomas"]
[WhiteFideId "2803860"]
[BlackFideId "4622634"]
[WhiteElo "2405"]
[BlackElo "2569"]
[Result "1-0"]
[Round "10"]
[TimeControl "180+2"]
[Date "2023.07.11"]
[WhiteClock "0:00:04"]
[BlackClock "0:00:00"]
[Board "76"]

1. e4 {[%clk 0:03:00]}  e5 {[%clk 0:02:59]} 2. Nf3 {[%clk 0:02:59]}  Nc6 {[%clk 0:02:59]} 3. Nc3 {[%clk 0:02:56]}  Nf6 {[%clk 0:02:59]} 4. g3 {[%clk 0:02:56]}  d5 {[%clk 0:02:58]} 5. exd5 {[%clk 0:02:55]}  Nxd5 {[%clk 0:02:59]} 6. d3 {[%clk 0:02:56]}  Nxc3 {[%clk 0:02:58]} 7. bxc3 {[%clk 0:02:55]}  Bc5 {[%clk 0:02:56]} 8. Bg2 {[%clk 0:02:54]}  O-O {[%clk 0:02:55]} 9. O-O {[%clk 0:02:52]}  Bg4 {[%clk 0:02:56]} 10. h3 {[%clk 0:02:51]}  Bh5 {[%clk 0:02:56]} 11. g4 {[%clk 0:02:50]}  Bg6 {[%clk 0:02:56]} 12. Ng5 {[%clk 0:02:46]}  Qd7 {[%clk 0:02:47]} 13. Rb1 {[%clk 0:02:39]}  Bb6 {[%clk 0:02:47]} 14. Qe2 {[%clk 0:02:32]}  Rae8 {[%clk 0:02:36]} 15. Be3 {[%clk 0:02:28]}  f6 {[%clk 0:02:34]} 16. Ne4 {[%clk 0:02:28]}  f5 {[%clk 0:02:34]} 17. gxf5 {[%clk 0:02:28]}  Bxf5 {[%clk 0:02:33]} 18. Qh5 {[%clk 0:02:13]}  Bg6 {[%clk 0:02:25]} 19. Qg4 {[%clk 0:02:07]}  Bf5 {[%clk 0:02:05]} 20. Qh5 {[%clk 0:02:06]}  Re6 {[%clk 0:01:58]} 21. Rb5 {[%clk 0:01:26]}  Rg6 {[%clk 0:01:45]} 22. Kh2 {[%clk 0:01:10]}  Qf7 {[%clk 0:01:01]} 23. Ng5 {[%clk 0:00:59]}  Rxg5 {[%clk 0:01:01]} 24. Qxf7+ {[%clk 0:00:47]}  Rxf7 {[%clk 0:00:57]} 25. Bxg5 {[%clk 0:00:47]}  Bd7 {[%clk 0:00:49]} 26. Be3 {[%clk 0:00:31]}  Kf8 {[%clk 0:00:47]} 27. Bd5 {[%clk 0:00:23]}  Rf6 {[%clk 0:00:46]} 28. Bxb6 {[%clk 0:00:17]}  axb6 {[%clk 0:00:46]} 29. Bxc6 {[%clk 0:00:17]}  Rxc6 {[%clk 0:00:44]} 30. Rxe5 {[%clk 0:00:17]}  Rxc3 {[%clk 0:00:44]} 31. Rc1 {[%clk 0:00:15]}  Bc6 {[%clk 0:00:42]} 32. Kg3 {[%clk 0:00:13]}  b5 {[%clk 0:00:40]} 33. Rf5+ {[%clk 0:00:12]}  Kg8 {[%clk 0:00:38]} 34. Rf4 {[%clk 0:00:13]}  g6 {[%clk 0:00:38]} 35. Rb4 {[%clk 0:00:10]}  Rc5 {[%clk 0:00:36]} 36. f4 {[%clk 0:00:09]}  Kg7 {[%clk 0:00:36]} 37. Rd4 {[%clk 0:00:09]}  Kf6 {[%clk 0:00:36]} 38. c4 {[%clk 0:00:09]}  bxc4 {[%clk 0:00:34]} 39. dxc4 {[%clk 0:00:09]}  Ra5 {[%clk 0:00:34]} 40. Rc2 {[%clk 0:00:09]}  Ra3+ {[%clk 0:00:34]} 41. Kh2 {[%clk 0:00:07]}  Rf3 {[%clk 0:00:31]} 42. Re2 {[%clk 0:00:02]}  Rf1 {[%clk 0:00:27]} 43. Red2 {[%clk 0:00:02]}  h5 {[%clk 0:00:25]} 44. h4 {[%clk 0:00:03]}  Rh1+ {[%clk 0:00:21]} 45. Kg3 {[%clk 0:00:03]}  Rg1+ {[%clk 0:00:22]} 46. Kf2 {[%clk 0:00:03]}  Rg4 {[%clk 0:00:20]} 47. f5 {[%clk 0:00:02]}  Rg2+ {[%clk 0:00:14]} 48. Kf1 {[%clk 0:00:02]}  Rh2 {[%clk 0:00:14]} 49. fxg6 {[%clk 0:00:02]}  Rh1+ {[%clk 0:00:13]} 50. Kf2 {[%clk 0:00:02]}  Kxg6 {[%clk 0:00:14]} 51. Kg3 {[%clk 0:00:02]}  Rg1+ {[%clk 0:00:13]} 52. Kf4 {[%clk 0:00:02]}  Rg4+ {[%clk 0:00:13]} 53. Ke5 {[%clk 0:00:03]}  Rg3 {[%clk 0:00:13]} 54. R4d3 {[%clk 0:00:03]}  Rg4 {[%clk 0:00:12]} 55. Rd4 {[%clk 0:00:02]}  Rg3 {[%clk 0:00:11]} 56. R2d3 {[%clk 0:00:03]}  Rg2 {[%clk 0:00:11]} 57. Rd2 {[%clk 0:00:04]}  Rg1 {[%clk 0:00:11]} 58. Rd1 {[%clk 0:00:04]}  Rg3 {[%clk 0:00:10]} 59. R1d2 {[%clk 0:00:04]}  Re3+ {[%clk 0:00:09]} 60. Kf4 {[%clk 0:00:05]}  Re6 {[%clk 0:00:08]} 61. R2d3 {[%clk 0:00:04]}  Rf6+ {[%clk 0:00:09]} 62. Kg3 {[%clk 0:00:05]}  Rf1 {[%clk 0:00:09]} 63. Rf4 {[%clk 0:00:05]}  Rg1+ {[%clk 0:00:08]} 64. Kf2 {[%clk 0:00:05]}  Rh1 {[%clk 0:00:07]} 65. Rg3+ {[%clk 0:00:05]}  Kh6 {[%clk 0:00:07]} 66. Ke3 {[%clk 0:00:06]}  Re1+ {[%clk 0:00:06]} 67. Kd4 {[%clk 0:00:06]}  Re6 {[%clk 0:00:07]} 68. c5 {[%clk 0:00:05]}  Re7 {[%clk 0:00:06]} 69. a3 {[%clk 0:00:06]}  Rd7+ {[%clk 0:00:05]} 70. Ke5 {[%clk 0:00:06]}  Rd5+ {[%clk 0:00:06]} 71. Kf6 {[%clk 0:00:06]}  Rxc5 {[%clk 0:00:06]} 72. Rg6+ {[%clk 0:00:05]}  Kh7 {[%clk 0:00:06]} 73. Rf5 {[%clk 0:00:04]}  Rxf5+ {[%clk 0:00:05]} 74. Kxf5 {[%clk 0:00:04]}  Be4+ {[%clk 0:00:06]} 75. Kxe4 {[%clk 0:00:04]}  Kxg6 {[%clk 0:00:07]} 76. Ke5 {[%clk 0:00:05]}  c6 {[%clk 0:00:05]} 77. Kd6 {[%clk 0:00:05]}  Kf5 {[%clk 0:00:05]} 78. a4 {[%clk 0:00:04]}  Kg4 {[%clk 0:00:05]} 79. a5 {[%clk 0:00:04]}  Kxh4 {[%clk 0:00:05]} 80. Kc7 {[%clk 0:00:05]}  c5 {[%clk 0:00:03]} 81. Kxb7 {[%clk 0:00:06]}  c4 {[%clk 0:00:04]} 82. a6 {[%clk 0:00:06]}  c3 {[%clk 0:00:04]} 83. a7 {[%clk 0:00:07]}  c2 {[%clk 0:00:05]} 84. a8=Q {[%clk 0:00:07]}  c1=Q {[%clk 0:00:06]} 85. Qd8+ {[%clk 0:00:07]}  Qg5 {[%clk 0:00:06]} 86. Qd4+ {[%clk 0:00:07]}  Qg4 {[%clk 0:00:06]} 87. Qf2+ {[%clk 0:00:07]}  Qg3 {[%clk 0:00:06]} 88. Qf6+ {[%clk 0:00:07]}  Kh3 {[%clk 0:00:06]} 89. Qf5+ {[%clk 0:00:07]}  Qg4 {[%clk 0:00:06]} 90. Qf6 {[%clk 0:00:07]}  h4 {[%clk 0:00:06]} 91. Kb8 {[%clk 0:00:07]}  Kh2 {[%clk 0:00:04]} 92. Qf2+ {[%clk 0:00:07]}  Kh3 {[%clk 0:00:03]} 93. Qf1+ {[%clk 0:00:07]}  Qg2 {[%clk 0:00:03]} 94. Qf5+ {[%clk 0:00:07]}  Qg4 {[%clk 0:00:03]} 95. Qf1+ {[%clk 0:00:07]}  Kh2 {[%clk 0:00:03]} 96. Qf2+ {[%clk 0:00:05]}  Kh1 {[%clk 0:00:03]} 97. Qf1+ {[%clk 0:00:05]}  Qg1 {[%clk 0:00:00]} 98. Qf5 {[%clk 0:00:04]} 1-0


[Site "https://www.chess.com"]

[Event "Titled Tuesday Blitz July 11 Early 2023"]
[White "Jegorovas, Aleksandras"]
[Black "Horobetz, Graham"]
[WhiteFideId "12801950"]
[BlackFideId "2047322"]
[WhiteElo "2398"]
[BlackElo "2566"]
[Result "1-0"]
[Round "10"]
[TimeControl "180+2"]
[Date "2023.07.11"]
[WhiteClock "0:02:05"]
[BlackClock "0:00:03"]
[Board "78"]

1. d4 {[%clk 0:02:57]}  Nf6 {[%clk 0:02:59]} 2. c4 {[%clk 0:02:57]}  g6 {[%clk 0:02:59]} 3. Nc3 {[%clk 0:02:57]}  d5 {[%clk 0:02:58]} 4. cxd5 {[%clk 0:02:57]}  Nxd5 {[%clk 0:02:59]} 5. e4 {[%clk 0:02:57]}  Nxc3 {[%clk 0:02:59]} 6. bxc3 {[%clk 0:02:58]}  Bg7 {[%clk 0:03:00]} 7. Bc4 {[%clk 0:02:57]}  c5 {[%clk 0:02:59]} 8. Ne2 {[%clk 0:02:57]}  O-O {[%clk 0:02:59]} 9. Be3 {[%clk 0:02:57]}  Nc6 {[%clk 0:02:57]} 10. Rc1 {[%clk 0:02:53]}  b6 {[%clk 0:02:34]} 11. h4 {[%clk 0:02:50]}  cxd4 {[%clk 0:01:45]} 12. cxd4 {[%clk 0:02:49]}  Na5 {[%clk 0:01:44]} 13. Bd3 {[%clk 0:02:47]}  f5 {[%clk 0:01:39]} 14. exf5 {[%clk 0:02:45]}  Bxf5 {[%clk 0:01:38]} 15. h5 {[%clk 0:02:44]}  e5 {[%clk 0:00:59]} 16. hxg6 {[%clk 0:02:41]}  hxg6 {[%clk 0:00:58]} 17. Bxf5 {[%clk 0:02:41]}  Rxf5 {[%clk 0:00:58]} 18. Ng3 {[%clk 0:02:39]}  exd4 {[%clk 0:00:37]} 19. Nxf5 {[%clk 0:02:38]}  gxf5 {[%clk 0:00:38]} 20. Bh6 {[%clk 0:02:29]}  Bxh6 {[%clk 0:00:20]} 21. Rxh6 {[%clk 0:02:29]}  Qg5 {[%clk 0:00:20]} 22. Rh3 {[%clk 0:02:18]}  f4 {[%clk 0:00:15]} 23. Qd3 {[%clk 0:02:10]}  Re8+ {[%clk 0:00:13]} 24. Kf1 {[%clk 0:02:09]}  f3 {[%clk 0:00:07]} 25. Qh7+ {[%clk 0:02:08]}  Kf8 {[%clk 0:00:03]} 26. Rxf3+ {[%clk 0:02:05]} 1-0


[Site "https://www.chess.com"]

[Event "Titled Tuesday Blitz July 11 Early 2023"]
[White "Djokic, Mihailo"]
[Black "MateoReyes"]
[WhiteFideId "976440"]
[WhiteElo "2611"]
[BlackElo "2487"]
[Result "0-1"]
[Round "10"]
[TimeControl "180+2"]
[Date "2023.07.11"]
[WhiteClock "0:01:00"]
[BlackClock "0:00:34"]
[Board "83"]

1. e4 {[%clk 0:03:00]}  c5 {[%clk 0:02:58]} 2. Nf3 {[%clk 0:03:00]}  d6 {[%clk 0:02:58]} 3. d4 {[%clk 0:03:01]}  cxd4 {[%clk 0:02:58]} 4. Nxd4 {[%clk 0:03:02]}  Nf6 {[%clk 0:02:58]} 5. Nc3 {[%clk 0:03:01]}  a6 {[%clk 0:02:58]} 6. Rg1 {[%clk 0:03:01]}  e5 {[%clk 0:02:58]} 7. Nb3 {[%clk 0:03:00]}  h5 {[%clk 0:02:57]} 8. h3 {[%clk 0:03:01]}  Be6 {[%clk 0:02:54]} 9. g4 {[%clk 0:03:01]}  hxg4 {[%clk 0:02:54]} 10. hxg4 {[%clk 0:03:02]}  Nfd7 {[%clk 0:02:53]} 11. g5 {[%clk 0:03:01]}  g6 {[%clk 0:02:52]} 12. Be3 {[%clk 0:03:01]}  Be7 {[%clk 0:02:49]} 13. Nd5 {[%clk 0:03:01]}  Bxd5 {[%clk 0:02:48]} 14. exd5 {[%clk 0:02:58]}  Nb6 {[%clk 0:02:32]} 15. a4 {[%clk 0:02:55]}  Qc7 {[%clk 0:02:31]} 16. Rg4 {[%clk 0:02:47]}  Rh1 {[%clk 0:02:19]} 17. Qf3 {[%clk 0:02:46]}  Rh8 {[%clk 0:02:03]} 18. a5 {[%clk 0:02:42]}  N6d7 {[%clk 0:02:02]} 19. Rc4 {[%clk 0:02:41]}  Nc5 {[%clk 0:01:52]} 20. Nxc5 {[%clk 0:02:40]}  dxc5 {[%clk 0:01:52]} 21. d6 {[%clk 0:02:22]}  Bxd6 {[%clk 0:01:49]} 22. O-O-O {[%clk 0:02:21]}  Nc6 {[%clk 0:01:47]} 23. Bxc5 {[%clk 0:02:17]}  Bxc5 {[%clk 0:01:46]} 24. Rxc5 {[%clk 0:02:18]}  Rd8 {[%clk 0:01:44]} 25. Rxd8+ {[%clk 0:02:15]}  Qxd8 {[%clk 0:01:44]} 26. Bc4 {[%clk 0:02:14]}  Qxg5+ {[%clk 0:01:41]} 27. Kb1 {[%clk 0:02:14]}  Qe7 {[%clk 0:01:40]} 28. b4 {[%clk 0:01:56]}  e4 {[%clk 0:01:25]} 29. Qc3 {[%clk 0:01:54]}  Rh1+ {[%clk 0:01:22]} 30. Ka2 {[%clk 0:01:53]}  Kf8 {[%clk 0:01:18]} 31. Bd5 {[%clk 0:01:48]}  Nd8 {[%clk 0:00:59]} 32. Rc7 {[%clk 0:01:45]}  Qd6 {[%clk 0:00:55]} 33. Bxe4 {[%clk 0:01:45]}  Qe6+ {[%clk 0:00:54]} 34. Qc4 {[%clk 0:01:40]}  Qxc4+ {[%clk 0:00:52]} 35. Rxc4 {[%clk 0:01:41]}  Rh2 {[%clk 0:00:53]} 36. f3 {[%clk 0:01:26]}  Ke7 {[%clk 0:00:52]} 37. Kb3 {[%clk 0:01:20]}  Kd6 {[%clk 0:00:51]} 38. Rc8 {[%clk 0:01:20]}  Kd7 {[%clk 0:00:51]} 39. Rxd8+ {[%clk 0:01:20]}  Kxd8 {[%clk 0:00:50]} 40. Bxb7 {[%clk 0:01:20]}  Rf2 {[%clk 0:00:49]} 41. b5 {[%clk 0:01:19]}  Kc7 {[%clk 0:00:45]} 42. bxa6 {[%clk 0:01:11]}  Kb8 {[%clk 0:00:44]} 43. Bd5 {[%clk 0:01:11]}  f5 {[%clk 0:00:41]} 44. c3 {[%clk 0:01:05]}  g5 {[%clk 0:00:41]} 45. Kb4 {[%clk 0:01:00]}  g4 {[%clk 0:00:41]} 46. fxg4 {[%clk 0:01:00]}  fxg4 {[%clk 0:00:41]} 47. c4 {[%clk 0:00:58]}  g3 {[%clk 0:00:40]} 48. c5 {[%clk 0:00:59]}  g2 {[%clk 0:00:39]} 49. c6 {[%clk 0:00:58]}  g1=Q {[%clk 0:00:36]} 50. c7+ {[%clk 0:00:59]}  Kxc7 {[%clk 0:00:34]} 51. a7 {[%clk 0:01:00]} 0-1


[Site "https://www.chess.com"]

[Event "Titled Tuesday Blitz July 11 Early 2023"]
[White "KorolDimitriy75"]
[Black "Shukhman, Anna"]
[BlackFideId "54180058"]
[WhiteElo "2442"]
[BlackElo "2583"]
[Result "0-1"]
[Round "10"]
[TimeControl "180+2"]
[Date "2023.07.11"]
[WhiteClock "0:00:00"]
[BlackClock "0:01:00"]
[Board "84"]

1. d4 {[%clk 0:01:20]}  Nf6 {[%clk 0:03:00]} 2. c4 {[%clk 0:01:20]}  g6 {[%clk 0:03:00]} 3. Nc3 {[%clk 0:01:19]}  d5 {[%clk 0:02:58]} 4. cxd5 {[%clk 0:01:19]}  Nxd5 {[%clk 0:02:59]} 5. e4 {[%clk 0:01:19]}  Nxc3 {[%clk 0:02:59]} 6. bxc3 {[%clk 0:01:20]}  Bg7 {[%clk 0:02:59]} 7. Nf3 {[%clk 0:01:21]}  c5 {[%clk 0:02:59]} 8. Rb1 {[%clk 0:01:21]}  O-O {[%clk 0:02:58]} 9. Be2 {[%clk 0:01:20]}  cxd4 {[%clk 0:02:58]} 10. cxd4 {[%clk 0:01:20]}  Qa5+ {[%clk 0:02:58]} 11. Qd2 {[%clk 0:01:21]}  Qxd2+ {[%clk 0:02:53]} 12. Bxd2 {[%clk 0:01:22]}  Rd8 {[%clk 0:02:48]} 13. d5 {[%clk 0:01:20]}  e6 {[%clk 0:02:45]} 14. Bc4 {[%clk 0:01:20]}  b6 {[%clk 0:02:33]} 15. dxe6 {[%clk 0:01:15]}  Bxe6 {[%clk 0:02:32]} 16. Bxe6 {[%clk 0:01:14]}  fxe6 {[%clk 0:02:33]} 17. Ke2 {[%clk 0:01:01]}  Nc6 {[%clk 0:02:30]} 18. Rhc1 {[%clk 0:00:55]}  Rac8 {[%clk 0:02:29]} 19. Be3 {[%clk 0:00:47]}  Na5 {[%clk 0:02:25]} 20. Ng5 {[%clk 0:00:44]}  Re8 {[%clk 0:02:01]} 21. Rxc8 {[%clk 0:00:19]}  Rxc8 {[%clk 0:02:00]} 22. Nxe6 {[%clk 0:00:19]}  Rc2+ {[%clk 0:01:59]} 23. Kd3 {[%clk 0:00:18]}  Rxa2 {[%clk 0:01:59]} 24. Rc1 {[%clk 0:00:17]}  Ra3+ {[%clk 0:01:54]} 25. Ke2 {[%clk 0:00:16]}  Rc3 {[%clk 0:01:51]} 26. Rd1 {[%clk 0:00:15]}  Bf6 {[%clk 0:01:39]} 27. Rd7 {[%clk 0:00:14]}  Nc4 {[%clk 0:01:39]} 28. Bh6 {[%clk 0:00:14]}  a5 {[%clk 0:01:34]} 29. f4 {[%clk 0:00:13]}  Re3+ {[%clk 0:01:32]} 30. Kf2 {[%clk 0:00:13]}  Rxe4 {[%clk 0:01:33]} 31. Ng5 {[%clk 0:00:11]}  Rxf4+ {[%clk 0:01:29]} 32. Kg3 {[%clk 0:00:11]}  Bxg5 {[%clk 0:01:28]} 33. Bxg5 {[%clk 0:00:10]}  Rf8 {[%clk 0:01:22]} 34. Bh6 {[%clk 0:00:10]}  Ra8 {[%clk 0:01:16]} 35. Rg7+ {[%clk 0:00:09]}  Kh8 {[%clk 0:01:15]} 36. Rc7 {[%clk 0:00:09]}  Nd6 {[%clk 0:01:14]} 37. Bg7+ {[%clk 0:00:09]}  Kg8 {[%clk 0:01:13]} 38. Be5 {[%clk 0:00:07]}  Nf5+ {[%clk 0:01:12]} 39. Kf4 {[%clk 0:00:07]}  Rf8 {[%clk 0:01:06]} 40. g4 {[%clk 0:00:06]}  Nd6+ {[%clk 0:01:04]} 41. Ke3 {[%clk 0:00:00]}  Re8 {[%clk 0:01:00]} 0-1


[Site "https://www.chess.com"]

[Event "Titled Tuesday Blitz July 11 Early 2023"]
[White "Avazkhonov, Alikhon"]
[Black "Borrmann, Laurenz"]
[WhiteFideId "14208504"]
[BlackFideId "312187930"]
[WhiteElo "2454"]
[BlackElo "2559"]
[Result "0-1"]
[Round "10"]
[TimeControl "180+2"]
[Date "2023.07.11"]
[WhiteClock "0:00:02"]
[BlackClock "0:00:13"]
[Board "85"]

1. d4 {[%clk 0:03:00]}  f5 {[%clk 0:02:58]} 2. g3 {[%clk 0:02:59]}  Nf6 {[%clk 0:02:57]} 3. Bg2 {[%clk 0:03:00]}  e6 {[%clk 0:02:56]} 4. Nh3 {[%clk 0:02:59]}  Nc6 {[%clk 0:02:50]} 5. O-O {[%clk 0:02:58]}  Be7 {[%clk 0:02:43]} 6. c4 {[%clk 0:02:59]}  O-O {[%clk 0:02:43]} 7. Nc3 {[%clk 0:02:59]}  Qe8 {[%clk 0:02:41]} 8. Nf4 {[%clk 0:02:59]}  g5 {[%clk 0:02:37]} 9. Nh3 {[%clk 0:02:41]}  h6 {[%clk 0:02:37]} 10. e4 {[%clk 0:02:34]}  f4 {[%clk 0:02:30]} 11. e5 {[%clk 0:02:21]}  Nh5 {[%clk 0:02:19]} 12. Bf3 {[%clk 0:02:19]}  Ng7 {[%clk 0:02:19]} 13. gxf4 {[%clk 0:02:19]}  Nf5 {[%clk 0:02:18]} 14. Bh5 {[%clk 0:02:13]}  Qd8 {[%clk 0:02:17]} 15. d5 {[%clk 0:02:12]}  Ncd4 {[%clk 0:02:14]} 16. fxg5 {[%clk 0:02:12]}  Bc5 {[%clk 0:02:06]} 17. Ne4 {[%clk 0:02:11]}  b6 {[%clk 0:02:05]} 18. gxh6 {[%clk 0:02:10]}  Qh4 {[%clk 0:01:40]} 19. Qg4+ {[%clk 0:02:08]}  Qxg4+ {[%clk 0:01:40]} 20. Bxg4 {[%clk 0:02:09]}  Bb7 {[%clk 0:01:39]} 21. Nf6+ {[%clk 0:02:06]}  Kh8 {[%clk 0:01:39]} 22. h7 {[%clk 0:01:59]}  exd5 {[%clk 0:01:33]} 23. Nf4 {[%clk 0:01:59]}  Rxf6 {[%clk 0:01:28]} 24. exf6 {[%clk 0:01:58]}  Kxh7 {[%clk 0:01:29]} 25. Be3 {[%clk 0:01:34]}  Rg8 {[%clk 0:01:26]} 26. h3 {[%clk 0:01:27]}  dxc4 {[%clk 0:01:25]} 27. f7 {[%clk 0:01:18]}  Rg7 {[%clk 0:01:19]} 28. Kh2 {[%clk 0:00:47]}  Bd6 {[%clk 0:01:09]} 29. Rg1 {[%clk 0:00:37]}  Rxf7 {[%clk 0:00:42]} 30. Bh5 {[%clk 0:00:35]}  Nxe3 {[%clk 0:00:37]} 31. fxe3 {[%clk 0:00:11]}  Rxf4 {[%clk 0:00:36]} 32. exf4 {[%clk 0:00:11]}  Bxf4+ {[%clk 0:00:37]} 33. Rg3 {[%clk 0:00:11]}  Kh6 {[%clk 0:00:35]} 34. Bg4 {[%clk 0:00:12]}  Kg5 {[%clk 0:00:32]} 35. Rf1 {[%clk 0:00:11]}  Bd6 {[%clk 0:00:20]} 36. Bxd7+ {[%clk 0:00:09]}  Kh4 {[%clk 0:00:18]} 37. Rf7 {[%clk 0:00:03]}  Bxg3+ {[%clk 0:00:16]} 38. Kg1 {[%clk 0:00:04]}  Bd6 {[%clk 0:00:13]} 39. Rh7+ {[%clk 0:00:03]}  Kg3 {[%clk 0:00:13]} 40. Rg7+ {[%clk 0:00:04]}  Kf4 {[%clk 0:00:13]} 41. Rg4+ {[%clk 0:00:03]}  Ke3 {[%clk 0:00:14]} 42. h4 {[%clk 0:00:03]}  Ne2+ {[%clk 0:00:12]} 43. Kf1 {[%clk 0:00:03]}  Bf3 {[%clk 0:00:12]} 44. Rg5 {[%clk 0:00:02]}  Ng3+ {[%clk 0:00:12]} 45. Ke1 {[%clk 0:00:02]}  Bb4# {[%clk 0:00:13]} 0-1


[Site "https://www.chess.com"]

[Event "Titled Tuesday Blitz July 11 Early 2023"]
[White "Fiorito, Francisco"]
[Black "Estrada Nieto, Julian"]
[WhiteFideId "180165"]
[BlackFideId "5101018"]
[WhiteElo "2543"]
[BlackElo "2436"]
[Result "1-0"]
[Round "10"]
[TimeControl "180+2"]
[Date "2023.07.11"]
[WhiteClock "0:01:23"]
[BlackClock "0:00:00"]
[Board "86"]

1. d4 {[%clk 0:02:55]}  d5 {[%clk 0:02:58]} 2. Nc3 {[%clk 0:02:56]}  Nf6 {[%clk 0:02:58]} 3. Bf4 {[%clk 0:02:56]}  c6 {[%clk 0:02:58]} 4. e3 {[%clk 0:02:55]}  Bf5 {[%clk 0:02:58]} 5. f3 {[%clk 0:02:55]}  h6 {[%clk 0:02:58]} 6. g4 {[%clk 0:02:55]}  Bh7 {[%clk 0:02:58]} 7. h4 {[%clk 0:02:55]}  h5 {[%clk 0:02:43]} 8. g5 {[%clk 0:02:54]}  Nfd7 {[%clk 0:02:43]} 9. Bd3 {[%clk 0:02:53]}  Bxd3 {[%clk 0:02:42]} 10. Qxd3 {[%clk 0:02:54]}  g6 {[%clk 0:02:41]} 11. e4 {[%clk 0:02:53]}  e6 {[%clk 0:02:39]} 12. O-O-O {[%clk 0:02:51]}  Bg7 {[%clk 0:02:39]} 13. Bd6 {[%clk 0:02:50]}  Nb6 {[%clk 0:02:36]} 14. Be5 {[%clk 0:02:23]}  Bxe5 {[%clk 0:02:28]} 15. dxe5 {[%clk 0:02:24]}  N8d7 {[%clk 0:02:21]} 16. f4 {[%clk 0:02:23]}  O-O {[%clk 0:02:16]} 17. Nf3 {[%clk 0:02:23]}  Nc4 {[%clk 0:02:05]} 18. b3 {[%clk 0:02:19]}  Na3 {[%clk 0:01:41]} 19. f5 {[%clk 0:02:12]}  Qa5 {[%clk 0:01:32]} 20. fxg6 {[%clk 0:02:04]}  fxg6 {[%clk 0:01:31]} 21. exd5 {[%clk 0:02:05]}  Rf5 {[%clk 0:01:19]} 22. dxe6 {[%clk 0:01:46]}  Nc5 {[%clk 0:01:18]} 23. Qe3 {[%clk 0:01:47]}  Nxe6 {[%clk 0:01:10]} 24. Rd6 {[%clk 0:01:41]}  Re8 {[%clk 0:00:56]} 25. Nd4 {[%clk 0:01:37]}  Rxe5 {[%clk 0:00:47]} 26. Qd3 {[%clk 0:01:34]}  Nf4 {[%clk 0:00:38]} 27. Rxg6+ {[%clk 0:01:33]}  Nxg6 {[%clk 0:00:34]} 28. Qxg6+ {[%clk 0:01:34]}  Kh8 {[%clk 0:00:34]} 29. Qxh5+ {[%clk 0:01:34]}  Kg8 {[%clk 0:00:28]} 30. Qg6+ {[%clk 0:01:33]}  Kh8 {[%clk 0:00:29]} 31. Kb2 {[%clk 0:01:31]}  Nc4+ {[%clk 0:00:25]} 32. bxc4 {[%clk 0:01:29]}  Qb4+ {[%clk 0:00:25]} 33. Nb3 {[%clk 0:01:30]}  Re3 {[%clk 0:00:18]} 34. Qf6+ {[%clk 0:01:29]}  Kg8 {[%clk 0:00:17]} 35. Rd1 {[%clk 0:01:30]}  a5 {[%clk 0:00:12]} 36. Rd7 {[%clk 0:01:28]}  R8e7 {[%clk 0:00:09]} 37. Rd8+ {[%clk 0:01:27]}  Re8 {[%clk 0:00:09]} 38. Qg6+ {[%clk 0:01:24]}  Kf8 {[%clk 0:00:10]} 39. Rxe8+ {[%clk 0:01:24]}  Rxe8 {[%clk 0:00:09]} 40. Qf6+ {[%clk 0:01:23]}  Kg8 {[%clk 0:00:09]} 41. g6 {[%clk 0:01:24]}  Re7 {[%clk 0:00:06]} 42. c5 {[%clk 0:01:23]}  Rd7 {[%clk 0:00:00]} 43. Qe6+ {[%clk 0:01:23]} 1-0


[Site "https://www.chess.com"]

[Event "Titled Tuesday Blitz July 11 Early 2023"]
[White "a-z30"]
[Black "Chernomordik, Pavel"]
[BlackFideId "2804530"]
[WhiteElo "2404"]
[BlackElo "2543"]
[Result "1-0"]
[Round "10"]
[TimeControl "180+2"]
[Date "2023.07.11"]
[WhiteClock "0:00:16"]
[BlackClock "0:00:15"]
[Board "87"]

1. d3 {[%clk 0:03:00]}  g6 {[%clk 0:02:59]} 2. Nf3 {[%clk 0:03:01]}  Bg7 {[%clk 0:02:58]} 3. g3 {[%clk 0:03:02]}  e5 {[%clk 0:02:58]} 4. Bg2 {[%clk 0:03:03]}  Nc6 {[%clk 0:02:56]} 5. O-O {[%clk 0:03:03]}  d6 {[%clk 0:02:56]} 6. c4 {[%clk 0:03:04]}  h6 {[%clk 0:02:54]} 7. Nc3 {[%clk 0:03:04]}  Be6 {[%clk 0:02:54]} 8. Rb1 {[%clk 0:03:00]}  Nge7 {[%clk 0:02:51]} 9. b4 {[%clk 0:02:57]}  Qd7 {[%clk 0:02:51]} 10. b5 {[%clk 0:02:56]}  Nd8 {[%clk 0:02:50]} 11. Bb2 {[%clk 0:02:39]}  O-O {[%clk 0:02:48]} 12. d4 {[%clk 0:02:16]}  exd4 {[%clk 0:02:40]} 13. Nd5 {[%clk 0:01:37]}  Bf5 {[%clk 0:02:28]} 14. Rc1 {[%clk 0:01:17]}  Nxd5 {[%clk 0:02:05]} 15. cxd5 {[%clk 0:01:15]}  Qxb5 {[%clk 0:02:05]} 16. Bxd4 {[%clk 0:01:11]}  Qxd5 {[%clk 0:01:56]} 17. Bxg7 {[%clk 0:01:09]}  Qxd1 {[%clk 0:01:56]} 18. Rfxd1 {[%clk 0:01:10]}  Kxg7 {[%clk 0:01:55]} 19. Rxc7 {[%clk 0:01:10]}  Be4 {[%clk 0:01:49]} 20. Rxd6 {[%clk 0:01:06]}  Re8 {[%clk 0:01:44]} 21. Nd4 {[%clk 0:01:00]}  Bxg2 {[%clk 0:01:33]} 22. Kxg2 {[%clk 0:01:01]}  Re5 {[%clk 0:01:25]} 23. Rcd7 {[%clk 0:00:32]}  Nc6 {[%clk 0:01:21]} 24. Rxb7 {[%clk 0:00:21]}  Nxd4 {[%clk 0:01:15]} 25. Rxd4 {[%clk 0:00:22]}  Rxe2 {[%clk 0:01:15]} 26. Rdd7 {[%clk 0:00:21]}  Rf8 {[%clk 0:01:15]} 27. Rxa7 {[%clk 0:00:20]}  Kf6 {[%clk 0:01:09]} 28. a4 {[%clk 0:00:19]}  Ra2 {[%clk 0:01:07]} 29. a5 {[%clk 0:00:19]}  Ke6 {[%clk 0:01:05]} 30. Rdb7 {[%clk 0:00:18]}  Rd8 {[%clk 0:01:01]} 31. Rxf7 {[%clk 0:00:17]}  Rd5 {[%clk 0:00:54]} 32. Rae7+ {[%clk 0:00:14]}  Kd6 {[%clk 0:00:54]} 33. Rd7+ {[%clk 0:00:13]}  Kc6 {[%clk 0:00:54]} 34. Rxd5 {[%clk 0:00:14]}  Kxd5 {[%clk 0:00:54]} 35. Rf6 {[%clk 0:00:14]}  Rxa5 {[%clk 0:00:48]} 36. Rxg6 {[%clk 0:00:14]}  Ke4 {[%clk 0:00:45]} 37. Rxh6 {[%clk 0:00:14]}  Ra2 {[%clk 0:00:41]} 38. Rh4+ {[%clk 0:00:15]}  Ke5 {[%clk 0:00:41]} 39. Rf4 {[%clk 0:00:16]}  Rc2 {[%clk 0:00:40]} 40. h4 {[%clk 0:00:17]}  Ke6 {[%clk 0:00:40]} 41. h5 {[%clk 0:00:17]}  Rc5 {[%clk 0:00:40]} 42. g4 {[%clk 0:00:16]}  Rc3 {[%clk 0:00:37]} 43. f3 {[%clk 0:00:16]}  Ke5 {[%clk 0:00:36]} 44. Kg3 {[%clk 0:00:17]}  Rc1 {[%clk 0:00:35]} 45. Rf5+ {[%clk 0:00:18]}  Ke6 {[%clk 0:00:34]} 46. Kh4 {[%clk 0:00:19]}  Rc8 {[%clk 0:00:32]} 47. Kg5 {[%clk 0:00:20]}  Rg8+ {[%clk 0:00:31]} 48. Kh6 {[%clk 0:00:19]}  Rb8 {[%clk 0:00:29]} 49. Kg7 {[%clk 0:00:16]}  Rb7+ {[%clk 0:00:28]} 50. Kg6 {[%clk 0:00:17]}  Rb8 {[%clk 0:00:29]} 51. h6 {[%clk 0:00:16]}  Rg8+ {[%clk 0:00:27]} 52. Kh5 {[%clk 0:00:17]}  Rb8 {[%clk 0:00:15]} 53. h7 {[%clk 0:00:16]} 1-0


[Site "https://www.chess.com"]